fUSD/lending_fUSD_20260624
["ID","MTS","AMOUNT","RATE_DAILY","PERIOD"]
[426303352,1782261032000,-27644.9270667,0.00013558,2]
[426303345,1782261032000,-158.64,0.00013219,2]
[426303354,1782261032000,-500.0,0.00013698,2]
[426303350,1782261032000,-1000.0,0.00013458,2]
[426303353,1782261032000,-596.84,0.00013633,2]
[426303414,1782261038000,-500.0,0.00013698,2]
[426303411,1782261038000,-500.0,0.00013698,2]
[426303412,1782261038000,-500.0,0.00013698,2]
[426303410,1782261038000,-500.0,0.00013698,2]
[426303404,1782261038000,-500.0,0.00013698,2]
[426303407,1782261038000,-221.35471241,0.00013698,2]
[426303406,1782261038000,-500.0,0.00013698,2]
[426303409,1782261038000,-500.0,0.00013698,2]
[426303405,1782261038000,-500.0,0.00013698,2]
[426303408,1782261038000,-500.0,0.00013698,2]
[426303426,1782261038000,-500.0,0.00013698,2]
[426303424,1782261038000,-500.0,0.00013698,2]
[426303416,1782261038000,-500.0,0.00013698,2]
[426303418,1782261038000,-500.0,0.00013698,2]
[426303420,1782261038000,-500.0,0.00013698,2]
[426303433,1782261038000,-500.0,0.00013698,2]
[426303422,1782261038000,-500.0,0.00013698,2]
[426303431,1782261038000,-500.0,0.00013698,2]
[426303435,1782261038000,-500.0,0.00013698,2]
[426303437,1782261038000,-500.0,0.00013698,2]
[426303441,1782261038000,-500.0,0.00013698,2]
[426303439,1782261038000,-500.0,0.00013698,2]
[426303403,1782261038000,-500.0,0.00013698,2]
[426303428,1782261038000,-500.0,0.00013698,2]
[426303402,1782261038000,-511.64223797,0.00013698,2]
[426303384,1782261038000,-500.0,0.00013698,2]
[426303401,1782261038000,-500.0,0.00013698,2]
[426303376,1782261038000,-356.39747628,0.00013698,2]
[426303377,1782261038000,-143.60252372,0.00013698,2]
[426303378,1782261038000,-500.0,0.00013698,2]
[426303381,1782261038000,-500.0,0.00013698,2]
[426303380,1782261038000,-306.02498147,0.00013698,2]
[426303379,1782261038000,-193.97501853,0.00013698,2]
[426303383,1782261038000,-500.0,0.00013698,2]
[426303382,1782261038000,-507.25854354,0.00013698,2]
[426303388,1782261038000,-338.15092046,0.00013698,2]
[426303385,1782261038000,-346.50633522,0.00013698,2]
[426303443,1782261038000,-500.0,0.00013698,2]
[426303387,1782261038000,-500.0,0.00013698,2]
[426303390,1782261038000,-500.0,0.00013698,2]
[426303389,1782261038000,-161.84907954,0.00013698,2]
[426303392,1782261038000,-500.0,0.00013698,2]
[426303393,1782261038000,-560.58,0.00013698,2]
[426303395,1782261038000,-560.58,0.00013698,2]
[426303394,1782261038000,-560.58,0.00013698,2]
[426303391,1782261038000,-500.0,0.00013698,2]
[426303398,1782261038000,-560.58,0.00013698,2]
[426303397,1782261038000,-560.58,0.00013698,2]
[426303396,1782261038000,-560.58,0.00013698,2]
[426303399,1782261038000,-560.58,0.00013698,2]
[426303400,1782261038000,-560.58,0.00013698,2]
[426303445,1782261038000,-500.0,0.00013698,2]
[426303386,1782261038000,-500.0,0.00013698,2]
[426303449,1782261038000,-500.0,0.00013698,2]
[426303509,1782261038000,-1086.69770581,0.00014699,2]
[426303494,1782261038000,-158.64,0.00014421,2]
[426303510,1782261038000,-277.07716368,0.00014707,2]
[426303502,1782261038000,-1021.85068788,0.00014699,2]
[426303516,1782261038000,-25000.0,0.00014812,3]
[426303514,1782261038000,-25000.0,0.00014803,3]
[426303518,1782261038000,-25000.0,0.00014821,3]
[426303522,1782261038000,-25000.0,0.00014838,3]
[426303520,1782261038000,-25000.0,0.0001483,3]
[426303526,1782261038000,-25000.0,0.00014847,3]
[426303532,1782261038000,-596.84,0.00014872,2]
[426303496,1782261038000,-1500.0,0.00014623,2]
[426303524,1782261038000,-500.0,0.00014846,2]
[426303534,1782261038000,-25000.0,0.00014874,3]
[426303528,1782261038000,-25000.0,0.00014856,3]
[426303541,1782261038000,-25000.0,0.00014891,3]
[426303539,1782261038000,-25000.0,0.00014882,3]
[426303537,1782261038000,-500.0,0.00014882,2]
[426303547,1782261038000,-150.0,0.000149,2]
[426303554,1782261038000,-10591.99714117,0.00014932,2]
[426303549,1782261038000,-574.82,0.000149,2]
[426303552,1782261038000,-1400.0,0.000149,5]
[426303545,1782261038000,-25000.0,0.000149,3]
[426303543,1782261038000,-500.0,0.00014899,2]
[426303530,1782261038000,-25000.0,0.00014865,3]
[426303507,1782261038000,-1044.02903102,0.00014699,2]
[426303447,1782261038000,-500.0,0.00013698,2]
[426303500,1782261038000,-1063.12854999,0.00014699,2]
[426303451,1782261038000,-500.0,0.00013698,2]
[426303453,1782261038000,-500.0,0.00013698,2]
[426303457,1782261038000,-500.0,0.00013698,2]
[426303455,1782261038000,-500.0,0.00013698,2]
[426303461,1782261038000,-500.0,0.00013698,2]
[426303459,1782261038000,-198.42909726,0.00013698,2]
[426303504,1782261038000,-1037.5477286,0.00014699,2]
[426303467,1782261038000,-317.0,0.00013698,2]
[426303463,1782261038000,-500.0,0.00013698,2]
[426303480,1782261038000,-943.325571,0.00013817,2]
[426303482,1782261038000,-158.64,0.0001382,2]
[426303471,1782261038000,-7299.0,0.00013699,2]
[426303465,1782261038000,-151.0,0.00013698,2]
[426303484,1782261038000,-500.0,0.00013989,2]
[426303478,1782261038000,-150.99,0.00013699,2]
[426303469,1782261038000,-200.0,0.00013699,2]
[426303477,1782261038000,-2773.39,0.00013699,2]
[426303475,1782261038000,-18966.85,0.00013699,2]
[426303486,1782261038000,-166.81,0.00013995,2]
[426303488,1782261038000,-7068.27,0.00014189,2]
[426303492,1782261038000,-33323.2708,0.00014404,2]
[426303490,1782261038000,-500.0,0.00014404,2]
[426303498,1782261038000,-1095.14025886,0.00014699,2]
[426303512,1782261038000,-19483.00643451,0.00014738,2]
[426303473,1782261038000,-6758.36,0.00013699,2]
[426303636,1782261039000,-560.58,0.00014999,2]
[426303632,1782261039000,-560.58,0.00014999,2]
[426303628,1782261039000,-560.58,0.00014999,2]
[426303626,1782261039000,-436.62104389,0.00014999,2]
[426303615,1782261039000,-500.0,0.00014999,2]
[426303619,1782261039000,-500.0,0.00014999,2]
[426303623,1782261039000,-500.0,0.00014999,2]
[426303617,1782261039000,-500.0,0.00014999,2]
[426303612,1782261039000,-500.0,0.00014999,2]
[426303621,1782261039000,-500.0,0.00014999,2]
[426303634,1782261039000,-560.58,0.00014999,2]
[426303660,1782261039000,-2000.0,0.00015014,2]
[426303638,1782261039000,-560.58,0.00014999,2]
[426303640,1782261039000,-560.58,0.00014999,2]
[426303642,1782261039000,-560.58,0.00014999,2]
[426303644,1782261039000,-560.58,0.00014999,2]
[426303650,1782261039000,-560.58,0.00014999,2]
[426303646,1782261039000,-560.58,0.00014999,2]
[426303648,1782261039000,-560.58,0.00014999,2]
[426303653,1782261039000,-560.58,0.00014999,2]
[426303658,1782261039000,-560.75376222,0.00014999,2]
[426303655,1782261039000,-560.58,0.00014999,2]
[426303657,1782261039000,-560.58,0.00014999,2]
[426303610,1782261039000,-500.0,0.00014999,2]
[426303630,1782261039000,-560.58,0.00014999,2]
[426303596,1782261039000,-500.0,0.00014999,2]
[426303584,1782261039000,-500.0,0.00014999,2]
[426303595,1782261039000,-500.0,0.00014999,2]
[426303659,1782261039000,-500.0,0.00015014,2]
[426303558,1782261039000,-500.0,0.00014999,2]
[426303560,1782261039000,-500.0,0.00014999,2]
[426303556,1782261039000,-500.0,0.00014998,2]
[426303564,1782261039000,-500.0,0.00014999,2]
[426303566,1782261039000,-500.0,0.00014999,2]
[426303562,1782261039000,-500.0,0.00014999,2]
[426303570,1782261039000,-500.0,0.00014999,2]
[426303576,1782261039000,-500.0,0.00014999,2]
[426303572,1782261039000,-500.0,0.00014999,2]
[426303574,1782261039000,-500.0,0.00014999,2]
[426303601,1782261039000,-500.0,0.00014999,2]
[426303568,1782261039000,-500.0,0.00014999,2]
[426303580,1782261039000,-500.0,0.00014999,2]
[426303582,1782261039000,-500.0,0.00014999,2]
[426303589,1782261039000,-500.0,0.00014999,2]
[426303586,1782261039000,-433.47930829,0.00014999,2]
[426303591,1782261039000,-500.0,0.00014999,2]
[426303604,1782261039000,-500.0,0.00014999,2]
[426303603,1782261039000,-500.0,0.00014999,2]
[426303606,1782261039000,-500.0,0.00014999,2]
[426303609,1782261039000,-500.0,0.00014999,2]
[426303592,1782261039000,-500.0,0.00014999,2]
[426303599,1782261039000,-500.0,0.00014999,2]
[426303578,1782261039000,-500.0,0.00014999,2]
[426303662,1782261039000,-500.0,0.00015014,2]
[426303664,1782261039000,-250.0,0.00015068,2]
[426303763,1782261039000,-151.0,0.00017911,2]
[426303743,1782261039000,-151.0,0.00017911,2]
[426303735,1782261039000,-151.0,0.00017911,2]
[426303737,1782261039000,-200.0,0.00017911,2]
[426303740,1782261039000,-151.0,0.00017911,2]
[426303742,1782261039000,-151.0,0.00017911,2]
[426303738,1782261039000,-151.0,0.00017911,2]
[426303747,1782261039000,-1865.36488656,0.00017911,2]
[426303748,1782261039000,-500.0,0.00017911,2]
[426303751,1782261039000,-151.0,0.00017911,2]
[426303750,1782261039000,-151.0,0.00017911,2]
[426303756,1782261039000,-500.0,0.00017911,2]
[426303755,1782261039000,-151.0,0.00017911,2]
[426303749,1782261039000,-151.0,0.00017911,2]
[426303752,1782261039000,-151.0,0.00017911,2]
[426303753,1782261039000,-500.0,0.00017911,2]
[426303757,1782261039000,-151.0,0.00017911,2]
[426303758,1782261039000,-151.0,0.00017911,2]
[426303759,1782261039000,-500.0,0.00017911,2]
[426303760,1782261039000,-151.0,0.00017911,2]
[426303761,1782261039000,-151.0,0.00017911,2]
[426303765,1782261039000,-500.0,0.00017911,2]
[426303766,1782261039000,-151.0,0.00017911,2]
[426303764,1782261039000,-151.0,0.00017911,2]
[426303762,1782261039000,-500.0,0.00017911,2]
[426303678,1782261039000,-1672.7364795,0.00016267,2]
[426303746,1782261039000,-151.0,0.00017911,2]
[426303745,1782261039000,-151.0,0.00017911,2]
[426303754,1782261039000,-151.0,0.00017911,2]
[426303733,1782261039000,-10591.99714117,0.00017879,2]
[426303744,1782261039000,-151.0,0.00017911,2]
[426303680,1782261039000,-297.29,0.000163,2]
[426303676,1782261039000,-9999.99,0.00016116,2]
[426303668,1782261039000,-1613.0535,0.00015719,2]
[426303682,1782261039000,-170.21199942,0.00016346,2]
[426303666,1782261039000,-1555.5,0.00015171,2]
[426303672,1782261039000,-216.39158367,0.00016,3]
[426303670,1782261039000,-19483.00643443,0.00015978,2]
[426303686,1782261039000,-10591.99714117,0.00016406,2]
[426303684,1782261039000,-500.0,0.00016405,2]
[426303690,1782261039000,-250.0,0.00016438,4]
[426303692,1782261039000,-414.49086596,0.00016707,2]
[426303688,1782261039000,-767.0,0.00016438,2]
[426303675,1782261039000,-160.0,0.00016,3]
[426303697,1782261039000,-171.23,0.00016712,2]
[426303694,1782261039000,-625.45546606,0.00016712,2]
[426303729,1782261039000,-2000.0,0.00017815,2]
[426303718,1782261039000,-1798.80895522,0.00017363,2]
[426303716,1782261039000,-767.0,0.0001726,2]
[426303725,1782261039000,-547.10538947,0.00017794,2]
[426303731,1782261039000,-500.0,0.00017815,2]
[426303722,1782261039000,-560.8152,0.00017707,2]
[426303720,1782261039000,-574.82,0.000175,2]
[426303703,1782261039000,-19483.00643443,0.00017219,2]
[426303700,1782261039000,-1734.62772924,0.00016815,2]
[426303727,1782261039000,-250.0,0.00017808,6]
[426303805,1782261040000,-441.41789112,0.000186,2]
[426303804,1782261040000,-400.0,0.000186,2]
[426303799,1782261040000,-441.41789112,0.000185,2]
[426303795,1782261040000,-200.0,0.00018459,2]
[426303800,1782261040000,-1890.40722573,0.000185,2]
[426303798,1782261040000,-400.0,0.000185,2]
[426303803,1782261040000,-400.0,0.00018599,2]
[426303802,1782261040000,-10057.19854908,0.000185,2]
[426303797,1782261040000,-500.0,0.00018499,2]
[426303808,1782261040000,-10057.19854908,0.000186,2]
[426303801,1782261040000,-204.4,0.000185,2]
[426303806,1782261040000,-1890.40722573,0.000186,2]
[426303813,1782261040000,-10057.19854908,0.000188,2]
[426303812,1782261040000,-204.4,0.000188,2]
[426303815,1782261040000,-767.0,0.00018904,2]
[426303807,1782261040000,-204.4,0.000186,2]
[426303809,1782261040000,-400.0,0.000188,2]
[426303816,1782261040000,-400.0,0.00019,2]
[426303817,1782261040000,-441.41789112,0.00019,2]
[426303823,1782261040000,-2005.9555727,0.00019007,2]
[426303822,1782261040000,-200.0,0.00019007,2]
[426303820,1782261040000,-10057.19854908,0.00019,2]
[426303818,1782261040000,-1890.40722573,0.00019,2]
[426303796,1782261040000,-1934.38338736,0.00018459,2]
[426303810,1782261040000,-441.41789112,0.000188,2]
[426303793,1782261040000,-19483.00643443,0.00018459,2]
[426303821,1782261040000,-151.0,0.00019007,2]
[426303787,1782261040000,-151.0,0.00017911,2]
[426303770,1782261040000,-500.0,0.00017911,2]
[426303769,1782261040000,-151.0,0.00017911,2]
[426303767,1782261040000,-500.0,0.00017911,2]
[426303768,1782261040000,-151.0,0.00017911,2]
[426303771,1782261040000,-151.0,0.00017911,2]
[426303772,1782261040000,-151.0,0.00017911,2]
[426303773,1782261040000,-151.0,0.00017911,2]
[426303774,1782261040000,-500.0,0.00017911,2]
[426303775,1782261040000,-151.0,0.00017911,2]
[426303777,1782261040000,-500.0,0.00017911,2]
[426303776,1782261040000,-151.0,0.00017911,2]
[426303778,1782261040000,-151.0,0.00017911,2]
[426303780,1782261040000,-500.0,0.00017911,2]
[426303779,1782261040000,-151.0,0.00017911,2]
[426303781,1782261040000,-151.0,0.00017911,2]
[426303782,1782261040000,-151.0,0.00017911,2]
[426303784,1782261040000,-151.0,0.00017911,2]
[426303791,1782261040000,-27644.9270667,0.00018323,2]
[426303783,1782261040000,-500.0,0.00017911,2]
[426303788,1782261040000,-500.0,0.00017911,2]
[426303792,1782261040000,-759.1,0.0001841,2]
[426303789,1782261040000,-767.0,0.00018082,2]
[426303790,1782261040000,-1127.0,0.00018251,2]
[426303785,1782261040000,-151.0,0.00017911,2]
[426303786,1782261040000,-500.0,0.00017911,2]
[426303794,1782261040000,-151.0,0.00018459,2]
[426303819,1782261040000,-204.4,0.00019,2]
[426303811,1782261040000,-1890.40722573,0.000188,2]
[426303824,1782261040000,-500.0,0.00019121,2]
[426303854,1782261040000,-1890.40722573,0.000198,2]
[426303855,1782261040000,-10057.19854908,0.000198,2]
[426303856,1782261040000,-10000.0,0.000199,2]
[426303860,1782261040000,-10057.19854908,0.0002,2]
[426303859,1782261040000,-892.47314182,0.0002,2]
[426303861,1782261040000,-421.0,0.0002,2]
[426303858,1782261040000,-1890.40722573,0.0002,2]
[426303857,1782261040000,-1632.7474397,0.0002,2]
[426303862,1782261040000,-153.0,0.0002,2]
[426303863,1782261040000,-1422.0,0.0002,2]
[426303864,1782261040000,-436.0,0.0002,2]
[426303872,1782261040000,-154.0,0.0002,2]
[426303868,1782261040000,-1049.0,0.0002,2]
[426303865,1782261040000,-152.0,0.0002,2]
[426303871,1782261040000,-1779.0,0.0002,2]
[426303870,1782261040000,-351.0,0.0002,2]
[426303873,1782261040000,-591.0,0.0002,2]
[426303866,1782261040000,-218.0,0.0002,2]
[426303869,1782261040000,-339.0,0.0002,2]
[426303874,1782261040000,-673.0,0.0002,2]
[426303875,1782261040000,-152.0,0.0002,2]
[426303879,1782261040000,-2157.14243826,0.00020103,2]
[426303876,1782261040000,-194.77565813,0.00020004,2]
[426303878,1782261040000,-200.0,0.00020103,2]
[426303826,1782261040000,-400.0,0.000192,2]
[426303853,1782261040000,-151.94362168,0.00019726,2]
[426303852,1782261040000,-500.0,0.00019726,2]
[426303867,1782261040000,-9156.15,0.0002,2]
[426303851,1782261040000,-500.0,0.00019726,2]
[426303825,1782261040000,-250.0,0.00019178,8]
[426303850,1782261040000,-500.0,0.00019726,2]
[426303827,1782261040000,-441.41789112,0.000192,2]
[426303828,1782261040000,-1890.40722573,0.000192,2]
[426303829,1782261040000,-204.4,0.000192,2]
[426303831,1782261040000,-574.82,0.000192,2]
[426303836,1782261040000,-500.0,0.00019355,7]
[426303832,1782261040000,-170.21199942,0.00019235,2]
[426303834,1782261040000,-499.83315559,0.00019298,2]
[426303833,1782261040000,-313.74152797,0.00019256,2]
[426303830,1782261040000,-10057.19854908,0.000192,2]
[426303835,1782261040000,-10591.99714117,0.00019353,2]
[426303837,1782261040000,-500.0,0.00019355,7]
[426303877,1782261040000,-151.0,0.00020103,2]
[426303842,1782261040000,-530.0,0.00019452,2]
[426303848,1782261040000,-767.0,0.00019726,2]
[426303838,1782261040000,-825.34,0.00019355,7]
[426303845,1782261040000,-2080.17592889,0.00019555,2]
[426303847,1782261040000,-10057.19854908,0.000196,2]
[426303849,1782261040000,-500.0,0.00019726,2]
[426303841,1782261040000,-10057.19854908,0.000194,2]
[426303844,1782261040000,-200.0,0.00019555,2]
[426303843,1782261040000,-151.0,0.00019555,2]
[426303839,1782261040000,-500.0,0.00019399,2]
[426303840,1782261040000,-1890.40722573,0.000194,2]
[426303846,1782261040000,-1890.40722573,0.000196,2]
[426303916,1782261041000,-436.0,0.00021,2]
[426303922,1782261041000,-1779.0,0.00021,2]
[426303920,1782261041000,-339.0,0.00021,2]
[426303919,1782261041000,-1049.0,0.00021,2]
[426303918,1782261041000,-218.0,0.00021,2]
[426303915,1782261041000,-1422.0,0.00021,2]
[426303910,1782261041000,-475.20646481,0.00021,2]
[426303913,1782261041000,-421.0,0.00021,2]
[426303914,1782261041000,-153.0,0.00021,2]
[426303911,1782261041000,-1632.7474397,0.00021,2]
[426303921,1782261041000,-351.0,0.00021,2]
[426303917,1782261041000,-152.0,0.00021,2]
[426303923,1782261041000,-154.0,0.00021,2]
[426303934,1782261041000,-152.0,0.00021341,3]
[426303930,1782261041000,-1632.7474397,0.000212,2]
[426303924,1782261041000,-673.0,0.00021,2]
[426303926,1782261041000,-151.0,0.00021199,2]
[426303925,1782261041000,-152.0,0.00021,2]
[426303928,1782261041000,-2319.72410669,0.00021199,2]
[426303929,1782261041000,-475.20646481,0.000212,2]
[426303931,1782261041000,-10057.19854908,0.000212,2]
[426303932,1782261041000,-591.0,0.00021212,3]
[426303933,1782261041000,-1265.06,0.00021227,2]
[426303936,1782261041000,-475.20646481,0.000214,2]
[426303939,1782261041000,-530.0,0.00021506,2]
[426303912,1782261041000,-10057.19854908,0.00021,2]
[426303927,1782261041000,-200.0,0.00021199,2]
[426303909,1782261041000,-1000.0,0.0002085,2]
[426303884,1782261041000,-10057.19854908,0.000202,2]
[426303907,1782261041000,-530.0,0.00020821,2]
[426303880,1782261041000,-530.0,0.00020136,2]
[426303882,1782261041000,-1890.40722573,0.000202,2]
[426303942,1782261041000,-9156.15,0.00021605,2]
[426303881,1782261041000,-1632.7474397,0.000202,2]
[426303883,1782261041000,-892.47314182,0.000202,2]
[426303885,1782261041000,-785.0,0.00020274,2]
[426303887,1782261041000,-1632.7474397,0.000204,2]
[426303886,1782261041000,-759.1,0.00020381,2]
[426303888,1782261041000,-892.47314182,0.000204,2]
[426303889,1782261041000,-10057.19854908,0.000204,2]
[426303891,1782261041000,-595.04906239,0.00020599,2]
[426303890,1782261041000,-250.0,0.00020548,10]
[426303893,1782261041000,-892.47314182,0.000206,2]
[426303892,1782261041000,-1632.7474397,0.000206,2]
[426303894,1782261041000,-10057.19854908,0.000206,2]
[426303896,1782261041000,-574.82,0.000206,2]
[426303895,1782261041000,-247.74,0.000206,7]
[426303898,1782261041000,-785.0,0.00020606,2]
[426303906,1782261041000,-10057.19854908,0.000208,2]
[426303897,1782261041000,-591.0,0.00020606,2]
[426303899,1782261041000,-2000.0,0.00020617,2]
[426303900,1782261041000,-500.0,0.00020617,2]
[426303901,1782261041000,-151.0,0.00020651,2]
[426303902,1782261041000,-200.0,0.00020651,2]
[426303904,1782261041000,-1632.7474397,0.000208,2]
[426303903,1782261041000,-2236.95670847,0.00020651,2]
[426303905,1782261041000,-892.47314182,0.000208,2]
[426303908,1782261041000,-10591.99714117,0.00020827,2]
[426303937,1782261041000,-1632.7474397,0.000214,2]
[426303935,1782261041000,-3648.0,0.00021398,2]
[426303938,1782261041000,-10057.19854908,0.000214,2]
[426303972,1782261041000,-1779.0,0.00022,2]
[426303980,1782261041000,-170.21199942,0.00022123,2]
[426303976,1782261041000,-152.0,0.00022,2]
[426303981,1782261041000,-530.0,0.00022191,2]
[426303975,1782261041000,-725.0,0.00022,2]
[426303971,1782261041000,-351.0,0.00022,2]
[426303979,1782261041000,-10057.19854908,0.000221,2]
[426303977,1782261041000,-3281.387837,0.00022002,2]
[426303978,1782261041000,-846.0417642,0.00022002,2]
[426303982,1782261041000,-711.03930691,0.00022202,7]
[426303983,1782261041000,-152.0,0.00022273,5]
[426303985,1782261041000,-200.0,0.00022295,2]
[426303986,1782261041000,-2494.55939288,0.00022295,2]
[426303984,1782261041000,-151.0,0.00022295,2]
[426303987,1782261041000,-10057.19854908,0.000223,2]
[426303989,1782261041000,-150.0,0.00022333,2]
[426303988,1782261041000,-10591.99714117,0.00022301,2]
[426303991,1782261041000,-1606.78708527,0.00022407,2]
[426303990,1782261041000,-759.1,0.00022353,2]
[426303992,1782261041000,-1606.78708527,0.00022407,2]
[426303994,1782261041000,-591.0,0.00022424,4]
[426303995,1782261041000,-222.77308647,0.00022425,2]
[426303997,1782261041000,-2002.9,0.00022466,2]
[426303999,1782261041000,-1189.16,0.00022501,7]
[426303996,1782261041000,-1089.32,0.00022466,2]
[426303998,1782261041000,-10057.19854908,0.000225,2]
[426303941,1782261041000,-10057.19854908,0.000216,2]
[426303974,1782261041000,-673.0,0.00022,2]
[426303973,1782261041000,-154.0,0.00022,2]
[426303993,1782261041000,-1606.78708527,0.00022407,2]
[426303969,1782261041000,-574.82,0.00022,7]
[426303943,1782261041000,-1632.7474397,0.000217,2]
[426303970,1782261041000,-339.0,0.00022,2]
[426303940,1782261041000,-475.20646481,0.000216,2]
[426303944,1782261041000,-749.79299847,0.00021712,2]
[426303945,1782261041000,-151.0,0.00021747,2]
[426303949,1782261041000,-591.0,0.00021818,3]
[426303946,1782261041000,-200.0,0.00021747,2]
[426303951,1782261041000,-313.0,0.00021864,2]
[426303947,1782261041000,-2405.55389863,0.00021747,2]
[426303950,1782261041000,-1227.11,0.00021864,2]
[426303955,1782261041000,-1632.7474397,0.000219,2]
[426303954,1782261041000,-475.20646481,0.000219,2]
[426303953,1782261041000,-500.0,0.00021899,2]
[426303952,1782261041000,-150.0,0.00021864,2]
[426303948,1782261041000,-152.0,0.00021807,4]
[426303965,1782261041000,-152.0,0.00022,2]
[426303964,1782261041000,-436.0,0.00022,2]
[426303956,1782261041000,-10057.19854908,0.000219,2]
[426303960,1782261041000,-250.0,0.00021918,12]
[426303968,1782261041000,-1049.0,0.00022,2]
[426303966,1782261041000,-2278.45,0.00022,2]
[426303963,1782261041000,-1422.0,0.00022,2]
[426303958,1782261041000,-2148.8473267,0.00021915,2]
[426303957,1782261041000,-537.33518271,0.00021907,2]
[426303962,1782261041000,-153.0,0.00022,2]
[426303959,1782261041000,-5000.0,0.00021918,2]
[426303967,1782261041000,-218.0,0.00022,2]
[426303961,1782261041000,-421.0,0.00022,2]
[426304046,1782261042000,-150.0,0.00023512,2]
[426304035,1782261042000,-1151.2,0.0002335,7]
[426304042,1782261042000,-2000.0,0.00023418,2]
[426304040,1782261042000,-2682.57183977,0.00023391,2]
[426304045,1782261042000,-677.92587956,0.00023456,2]
[426304039,1782261042000,-200.0,0.00023391,2]
[426304037,1782261042000,-200.0,0.00023387,2]
[426304041,1782261042000,-10057.19854908,0.000234,2]
[426304034,1782261042000,-250.0,0.00023288,14]
[426304038,1782261042000,-151.0,0.00023391,2]
[426304044,1782261042000,-500.0,0.00023418,2]
[426304047,1782261042000,-500.0,0.00023522,2]
[426304036,1782261042000,-206.0,0.00023354,2]
[426304048,1782261042000,-383.0,0.00023523,2]
[426304071,1782261042000,-500.0,0.00023949,2]
[426304049,1782261042000,-1361.0,0.00023523,2]
[426304055,1782261042000,-179.61,0.00023589,4]
[426304052,1782261042000,-1229.0,0.00023523,2]
[426304068,1782261042000,-151.0,0.00023939,2]
[426304057,1782261042000,-591.0,0.00023636,5]
[426304050,1782261042000,-1277.0,0.00023523,2]
[426304059,1782261042000,-150.0,0.00023667,2]
[426304061,1782261042000,-152.0,0.00023672,8]
[426304063,1782261042000,-10057.19854908,0.000237,2]
[426304064,1782261042000,-216.39158367,0.000237,7]
[426304065,1782261042000,-10591.99714117,0.00023774,2]
[426304077,1782261042000,-160.0,0.00024,2]
[426304033,1782261042000,-9156.15,0.00023211,7]
[426304054,1782261042000,-5254.264,0.00023589,4]
[426304032,1782261042000,-152.0,0.00023206,7]
[426304000,1782261042000,-150.0,0.0002254,2]
[426304027,1782261042000,-3107.11,0.00023,7]
[426304001,1782261042000,-677.92587956,0.00022608,2]
[426304003,1782261042000,-152.0,0.00022739,6]
[426304005,1782261042000,-151.0,0.00022843,2]
[426304004,1782261042000,-500.0,0.0002274,2]
[426304002,1782261042000,-10057.19854908,0.000227,2]
[426304006,1782261042000,-200.0,0.00022843,2]
[426304007,1782261042000,-2586.85809042,0.00022843,2]
[426304013,1782261042000,-155.01801853,0.00023,2]
[426304008,1782261042000,-10057.19854908,0.00023,2]
[426304010,1782261042000,-153.0,0.00023,2]
[426304015,1782261042000,-1049.0,0.00023,2]
[426304018,1782261042000,-1779.0,0.00023,2]
[426304009,1782261042000,-421.0,0.00023,2]